[Event "Late-Titled-Tuesday-Blitz-February-20-2024"]
[Site "Chess.com"]
[Date "2024.02.20"]
[Round "5"]
[White "rikchessmx"]
[Black "Chesstrainer1"]
[Result "0-1"]
[WhiteElo "2236"]
[BlackElo "2478"]
[TimeControl "180+1"]
[EndTime "14:55:01 PST"]
[Termination "Chesstrainer1 won by resignation"]

1. e4 {[%clk 0:02:48.8]} 1... c5 {[%clk 0:02:58.3]} 2. Nf3 {[%clk 0:02:46.2]}
2... a6 {[%clk 0:02:58.5]} 3. d4 {[%clk 0:02:41.9]} 3... cxd4 {[%clk 0:02:57.5]}
4. Nxd4 {[%clk 0:02:42.8]} 4... Nf6 {[%clk 0:02:57.3]} 5. Bd3 {[%clk 0:02:36.6]}
5... e5 {[%clk 0:02:56.8]} 6. Nf3 {[%clk 0:02:34]} 6... d5 {[%clk 0:02:53.7]} 7.
Nbd2 {[%clk 0:02:34.3]} 7... Nc6 {[%clk 0:02:52.4]} 8. exd5 {[%clk 0:02:33.2]}
8... Nxd5 {[%clk 0:02:50.9]} 9. O-O {[%clk 0:02:31.9]} 9... Be7 {[%clk
0:02:42.1]} 10. Nc4 {[%clk 0:02:30.6]} 10... f6 {[%clk 0:02:40.9]} 11. Ne3
{[%clk 0:02:26.4]} 11... Nf4 {[%clk 0:02:37.8]} 12. Bf5 {[%clk 0:02:18.4]} 12...
Qxd1 {[%clk 0:02:14.8]} 13. Rxd1 {[%clk 0:02:16.8]} 13... Kf7 {[%clk 0:01:31.3]}
14. g3 {[%clk 0:02:13.1]} 14... Ne6 {[%clk 0:01:26.6]} 15. c3 {[%clk 0:02:09.9]}
15... g6 {[%clk 0:01:26.4]} 16. Be4 {[%clk 0:02:06.6]} 16... Nc5 {[%clk
0:01:21.6]} 17. Bc2 {[%clk 0:02:00.7]} 17... b5 {[%clk 0:01:11.8]} 18. Nd5
{[%clk 0:02:00.4]} 18... Be6 {[%clk 0:01:09.4]} 19. Nc7 {[%clk 0:01:57.3]} 19...
Rad8 {[%clk 0:01:03.4]} 20. Nxe6 {[%clk 0:01:55.7]} 20... Rxd1+ {[%clk
0:01:00.5]} 21. Bxd1 {[%clk 0:01:55.1]} 21... Kxe6 {[%clk 0:01:01.4]} 22. b4
{[%clk 0:01:53.3]} 22... Ne4 {[%clk 0:00:58.6]} 23. Bb3+ {[%clk 0:01:49.4]}
23... Kd7 {[%clk 0:00:57.5]} 24. Bb2 {[%clk 0:01:49.1]} 24... Kc7 {[%clk
0:00:50.5]} 25. a4 {[%clk 0:01:48.7]} 25... Rd8 {[%clk 0:00:47.5]} 26. axb5
{[%clk 0:01:42.2]} 26... axb5 {[%clk 0:00:48.4]} 27. Kf1 {[%clk 0:01:38.5]}
27... Nd2+ {[%clk 0:00:44.7]} 28. Nxd2 {[%clk 0:01:37.2]} 28... Rxd2 {[%clk
0:00:45.6]} 29. Bc1 {[%clk 0:01:36]} 29... Rd3 {[%clk 0:00:45.2]} 30. Bb2 {[%clk
0:01:30.6]} 30... f5 {[%clk 0:00:44.6]} 31. Bg8 {[%clk 0:01:26.9]} 31... h5
{[%clk 0:00:37.2]} 32. Bf7 {[%clk 0:01:24.3]} 32... Rd6 {[%clk 0:00:36.4]} 33.
Ke2 {[%clk 0:01:20.9]} 33... e4 {[%clk 0:00:33.7]} 34. Bc1 {[%clk 0:01:14.8]}
34... Kb7 {[%clk 0:00:29.7]} 35. Bf4 {[%clk 0:01:08.4]} 35... Rf6 {[%clk
0:00:29.2]} 36. Bd5 {[%clk 0:01:06.8]} 36... Bd6 {[%clk 0:00:24.4]} 37. Bg5
{[%clk 0:01:03.8]} 37... Rf8 {[%clk 0:00:21.1]} 38. c4 {[%clk 0:01:03.7]} 38...
Kc7 {[%clk 0:00:15]} 39. c5 {[%clk 0:00:57.7]} 39... Be5 {[%clk 0:00:14.1]} 40.
Ra7+ {[%clk 0:00:55.1]} 40... Nxa7 {[%clk 0:00:13.8]} 0-1

[Event "Late-Titled-Tuesday-Blitz-February-20-2024"]
[Site "Chess.com"]
[Date "2024.02.20"]
[Round "5"]
[White "Slovineanu"]
[Black "SRob2003"]
[Result "1-0"]
[WhiteElo "2451"]
[BlackElo "2657"]
[TimeControl "180+1"]
[EndTime "14:55:04 PST"]
[Termination "Slovineanu won on time"]

1. d4 {[%clk 0:02:52.7]} 1... Nf6 {[%clk 0:02:58.9]} 2. Nf3 {[%clk 0:02:47.1]}
2... d5 {[%clk 0:02:59]} 3. c4 {[%clk 0:02:46.6]} 3... e6 {[%clk 0:02:59.5]} 4.
e3 {[%clk 0:02:47]} 4... b6 {[%clk 0:02:49.9]} 5. b3 {[%clk 0:02:45.9]} 5... Bb7
{[%clk 0:02:49.2]} 6. Bd3 {[%clk 0:02:45.8]} 6... Bd6 {[%clk 0:02:47.2]} 7. O-O
{[%clk 0:02:45]} 7... Nbd7 {[%clk 0:02:43.5]} 8. Nc3 {[%clk 0:02:43.5]} 8... a6
{[%clk 0:02:43.3]} 9. Bb2 {[%clk 0:02:43.4]} 9... O-O {[%clk 0:02:38.9]} 10. Rc1
{[%clk 0:02:43.4]} 10... Qe7 {[%clk 0:02:35.9]} 11. a4 {[%clk 0:02:42.6]} 11...
dxc4 {[%clk 0:02:17.1]} 12. bxc4 {[%clk 0:02:41.7]} 12... e5 {[%clk 0:02:17.2]}
13. e4 {[%clk 0:02:36.5]} 13... exd4 {[%clk 0:02:13.8]} 14. Nxd4 {[%clk
0:02:36.5]} 14... g6 {[%clk 0:01:58.2]} 15. Re1 {[%clk 0:02:28.1]} 15... Rad8
{[%clk 0:01:25.9]} 16. Nd5 {[%clk 0:02:06.7]} 16... Nxd5 {[%clk 0:01:23.2]} 17.
exd5 {[%clk 0:02:04.4]} 17... Qf6 {[%clk 0:00:34.1]} 18. Rc2 {[%clk 0:01:21.9]}
18... Be5 {[%clk 0:00:27.2]} 19. Bf1 {[%clk 0:01:20.5]} 19... Rfe8 {[%clk
0:00:24.1]} 20. Rce2 {[%clk 0:01:18.7]} 20... Kf8 {[%clk 0:00:11.4]} 21. g3
{[%clk 0:01:15.7]} 21... Qg7 {[%clk 0:00:02.6]} 22. Bh3 {[%clk 0:01:13.3]} 22...
Nc5 {[%clk 0:00:01.2]} 23. Rxe5 {[%clk 0:01:04.1]} 23... Rxe5 {[%clk 0:00:01.4]}
24. Rxe5 {[%clk 0:01:04.4]} 24... Qxe5 {[%clk 0:00:01.5]} 25. Ne6+ {[%clk
0:01:05]} 25... Qxe6 {[%clk 0:00:02]} 26. Bxe6 {[%clk 0:01:03.4]} 26... Nxe6
{[%clk 0:00:02.8]} 27. Qc1 {[%clk 0:00:57.8]} 27... Nc5 {[%clk 0:00:02.8]} 28.
Bf6 {[%clk 0:00:49.3]} 28... Rd7 {[%clk 0:00:02.1]} 29. Qh6+ {[%clk 0:00:47.4]}
29... Ke8 {[%clk 0:00:02.5]} 30. Qxh7 {[%clk 0:00:47.1]} 30... Rd6 {[%clk
0:00:02]} 31. Qg8+ {[%clk 0:00:42.2]} 31... Kd7 {[%clk 0:00:02.5]} 32. Be5
{[%clk 0:00:41]} 1-0

[Event "Late-Titled-Tuesday-Blitz-February-20-2024"]
[Site "Chess.com"]
[Date "2024.02.20"]
[Round "5"]
[White "picturesquecheck"]
[Black "djano"]
[Result "1-0"]
[WhiteElo "2484"]
[BlackElo "2650"]
[TimeControl "180+1"]
[EndTime "14:55:05 PST"]
[Termination "picturesquecheck won by resignation"]

1. e4 {[%clk 0:03:00.9]} 1... c5 {[%clk 0:02:59.8]} 2. Nf3 {[%clk 0:03:00]} 2...
Nc6 {[%clk 0:03:00.1]} 3. Bb5 {[%clk 0:02:59.3]} 3... e5 {[%clk 0:03:00.1]} 4.
O-O {[%clk 0:02:58.5]} 4... Nge7 {[%clk 0:03:00]} 5. c3 {[%clk 0:02:58.8]} 5...
Ng6 {[%clk 0:03:00.2]} 6. d4 {[%clk 0:02:58.9]} 6... cxd4 {[%clk 0:03:00.7]} 7.
cxd4 {[%clk 0:02:59.6]} 7... exd4 {[%clk 0:03:01.2]} 8. Nxd4 {[%clk 0:02:59.5]}
8... Qb6 {[%clk 0:02:59.8]} 9. Nxc6 {[%clk 0:02:47]} 9... bxc6 {[%clk
0:02:48.1]} 10. Bc4 {[%clk 0:02:45.6]} 10... Bc5 {[%clk 0:02:45.7]} 11. Nc3
{[%clk 0:02:44.7]} 11... Qc7 {[%clk 0:02:39.5]} 12. Na4 {[%clk 0:02:36.8]} 12...
Be7 {[%clk 0:02:24.1]} 13. Be3 {[%clk 0:02:34]} 13... O-O {[%clk 0:02:23.3]} 14.
Rc1 {[%clk 0:02:33.5]} 14... d6 {[%clk 0:02:08.4]} 15. Nc3 {[%clk 0:02:25]}
15... Kh8 {[%clk 0:02:02.8]} 16. Qd2 {[%clk 0:02:22.1]} 16... Ne5 {[%clk
0:01:59.2]} 17. Be2 {[%clk 0:02:21.7]} 17... Qd8 {[%clk 0:01:48.3]} 18. h3
{[%clk 0:02:07.3]} 18... f5 {[%clk 0:01:48.2]} 19. f4 {[%clk 0:02:00.7]} 19...
Ng6 {[%clk 0:01:47.7]} 20. Rfd1 {[%clk 0:01:54.2]} 20... a5 {[%clk 0:01:36.6]}
21. Na4 {[%clk 0:01:40.4]} 21... fxe4 {[%clk 0:01:30.2]} 22. Nb6 {[%clk
0:01:39.4]} 22... Rb8 {[%clk 0:01:26.3]} 23. Rxc6 {[%clk 0:01:34.5]} 23... Bb7
{[%clk 0:01:24.4]} 24. Rcc1 {[%clk 0:01:32.5]} 24... Nxf4 {[%clk 0:01:18.7]} 25.
Bxf4 {[%clk 0:01:20.9]} 25... Qxb6+ {[%clk 0:01:17.4]} 26. Kh1 {[%clk
0:01:21.3]} 26... Rbd8 {[%clk 0:00:49.4]} 27. Be3 {[%clk 0:01:21]} 27... Qb4
{[%clk 0:00:33.3]} 28. Qxb4 {[%clk 0:01:20.2]} 28... axb4 {[%clk 0:00:34.2]} 29.
Rc7 {[%clk 0:01:20.1]} 29... Bf6 {[%clk 0:00:21.3]} 30. Rxb7 {[%clk 0:01:19.5]}
30... Bxb2 {[%clk 0:00:21.7]} 31. Rxb4 {[%clk 0:01:19]} 31... Ba3 {[%clk
0:00:17.2]} 32. Rxe4 {[%clk 0:01:18.4]} 32... d5 {[%clk 0:00:17.8]} 33. Ra4
{[%clk 0:01:17.3]} 33... Bb2 {[%clk 0:00:16.9]} 34. Bf3 {[%clk 0:01:15.9]} 34...
d4 {[%clk 0:00:16.9]} 35. Bxd4 {[%clk 0:01:10.1]} 35... Bxd4 {[%clk 0:00:10.3]}
36. Raxd4 {[%clk 0:01:09.3]} 36... Rde8 {[%clk 0:00:11.2]} 37. a4 {[%clk
0:01:08.2]} 37... Re5 {[%clk 0:00:11.3]} 38. Rd5 {[%clk 0:01:07.6]} 38... Re3
{[%clk 0:00:11.6]} 39. a5 {[%clk 0:01:07.7]} 39... Ra3 {[%clk 0:00:12.1]} 40.
R1d3 {[%clk 0:01:06.6]} 40... Ra1+ {[%clk 0:00:11.5]} 41. Kh2 {[%clk 0:01:07.2]}
41... h6 {[%clk 0:00:12.3]} 42. Be4 {[%clk 0:01:04.8]} 42... Re8 {[%clk
0:00:12.5]} 43. Rd8 {[%clk 0:01:04.7]} 43... Rg8 {[%clk 0:00:10.3]} 44. Bg6
{[%clk 0:01:00.6]} 1-0

[Event "Late-Titled-Tuesday-Blitz-February-20-2024"]
[Site "Chess.com"]
[Date "2024.02.20"]
[Round "5"]
[White "chucksterf10"]
[Black "Balla_Tamas"]
[Result "0-1"]
[WhiteElo "2546"]
[BlackElo "2392"]
[TimeControl "180+1"]
[EndTime "14:55:06 PST"]
[Termination "Balla_Tamas won by checkmate"]

1. f4 {[%clk 0:03:00.9]} 1... d5 {[%clk 0:02:56.3]} 2. Nf3 {[%clk 0:03:00.6]}
2... c5 {[%clk 0:02:56.5]} 3. g3 {[%clk 0:03:01]} 3... Nc6 {[%clk 0:02:54.8]} 4.
Bg2 {[%clk 0:03:01.3]} 4... g6 {[%clk 0:02:55.5]} 5. O-O {[%clk 0:03:01.2]} 5...
Bg7 {[%clk 0:02:56.2]} 6. d3 {[%clk 0:03:01.7]} 6... Nf6 {[%clk 0:02:55.3]} 7.
Qe1 {[%clk 0:03:01.8]} 7... O-O {[%clk 0:02:48.4]} 8. Na3 {[%clk 0:02:50]} 8...
d4 {[%clk 0:02:41.8]} 9. e4 {[%clk 0:02:43.3]} 9... dxe3 {[%clk 0:02:41.3]} 10.
Bxe3 {[%clk 0:02:43.5]} 10... Nd4 {[%clk 0:02:35.1]} 11. Ne5 {[%clk 0:02:39.2]}
11... Nd5 {[%clk 0:02:26.2]} 12. Bf2 {[%clk 0:02:33.2]} 12... Bf5 {[%clk
0:01:41.5]} 13. c3 {[%clk 0:02:25.3]} 13... Nc6 {[%clk 0:01:38.3]} 14. Nxc6
{[%clk 0:02:22.5]} 14... bxc6 {[%clk 0:01:39.2]} 15. Be4 {[%clk 0:02:14.6]}
15... Bxe4 {[%clk 0:01:27.6]} 16. dxe4 {[%clk 0:02:15.5]} 16... Nb6 {[%clk
0:01:20.1]} 17. Bxc5 {[%clk 0:02:14.6]} 17... Na4 {[%clk 0:01:15.5]} 18. Rd1
{[%clk 0:02:13.5]} 18... Qc7 {[%clk 0:01:07.9]} 19. Qf2 {[%clk 0:02:08.4]} 19...
Rab8 {[%clk 0:01:04.6]} 20. Nc4 {[%clk 0:02:05.2]} 20... Rfd8 {[%clk 0:00:54.8]}
21. Bxa7 {[%clk 0:02:02]} 21... Rxd1 {[%clk 0:00:34.5]} 22. Rxd1 {[%clk
0:02:00.7]} 22... Rd8 {[%clk 0:00:29.3]} 23. Rxd8+ {[%clk 0:01:48.3]} 23... Qxd8
{[%clk 0:00:30.2]} 24. Qc2 {[%clk 0:01:43.1]} 24... h5 {[%clk 0:00:21.5]} 25.
Qxa4 {[%clk 0:01:41.6]} 25... Qd3 {[%clk 0:00:21.5]} 26. Ne3 {[%clk 0:01:37.5]}
26... h4 {[%clk 0:00:19.7]} 27. Qd1 {[%clk 0:01:36]} 27... Qa6 {[%clk
0:00:18.5]} 28. Bd4 {[%clk 0:01:36.4]} 28... hxg3 {[%clk 0:00:18.5]} 29. hxg3
{[%clk 0:01:36]} 29... Qxa2 {[%clk 0:00:19]} 30. Bxg7 {[%clk 0:01:35.6]} 30...
Kxg7 {[%clk 0:00:19.9]} 31. Qd4+ {[%clk 0:01:33]} 31... Kh7 {[%clk 0:00:20.4]}
32. b4 {[%clk 0:01:30.5]} 32... Qe2 {[%clk 0:00:18.3]} 33. e5 {[%clk 0:01:26.1]}
33... Qe1+ {[%clk 0:00:18]} 34. Kh2 {[%clk 0:01:26.4]} 34... Qe2+ {[%clk
0:00:15.8]} 35. Ng2 {[%clk 0:01:26.5]} 35... Qh5+ {[%clk 0:00:16.1]} 36. Kg1
{[%clk 0:01:25.1]} 36... Qe2 {[%clk 0:00:16.3]} 37. c4 {[%clk 0:01:22.9]} 37...
Qc2 {[%clk 0:00:14.7]} 38. Kh2 {[%clk 0:01:19.5]} 38... Qb1 {[%clk 0:00:10.9]}
39. c5 {[%clk 0:01:18.9]} 39... Qf5 {[%clk 0:00:10.1]} 40. Qd1 {[%clk
0:01:15.4]} 40... Qe4 {[%clk 0:00:08.8]} 41. Qe1 {[%clk 0:01:15.5]} 41... Qc4
{[%clk 0:00:07.9]} 42. e6 {[%clk 0:01:12.3]} 42... fxe6 {[%clk 0:00:07.5]} 43.
Nh4 {[%clk 0:01:11.8]} 43... Qc2+ {[%clk 0:00:04.4]} 44. Kh3 {[%clk 0:01:11.7]}
44... Qd3 {[%clk 0:00:02.5]} 45. Qxe6 {[%clk 0:01:10.7]} 45... Qf1+ {[%clk
0:00:02.7]} 46. Kg4 {[%clk 0:01:09.5]} 46... Qd1+ {[%clk 0:00:02]} 47. Kg5
{[%clk 0:01:09.4]} 47... Qh5# {[%clk 0:00:02.4]} 0-1

[Event "Late-Titled-Tuesday-Blitz-February-20-2024"]
[Site "Chess.com"]
[Date "2024.02.20"]
[Round "5"]
[White "Malev212"]
[Black "Fluffey"]
[Result "1-0"]
[WhiteElo "2678"]
[BlackElo "2418"]
[TimeControl "180+1"]
[EndTime "14:55:10 PST"]
[Termination "Malev212 won by checkmate"]

1. e4 {[%clk 0:03:00.9]} 1... c5 {[%clk 0:02:58.8]} 2. Nf3 {[%clk 0:02:59.7]}
2... Nc6 {[%clk 0:02:59]} 3. d4 {[%clk 0:02:59.4]} 3... cxd4 {[%clk 0:02:59.9]}
4. Nxd4 {[%clk 0:02:58.6]} 4... e5 {[%clk 0:03:00.6]} 5. Nb5 {[%clk 0:02:57.5]}
5... d6 {[%clk 0:03:00.8]} 6. c4 {[%clk 0:02:57.1]} 6... Be7 {[%clk 0:02:58.8]}
7. N1c3 {[%clk 0:02:56.4]} 7... a6 {[%clk 0:02:57.9]} 8. Na3 {[%clk 0:02:56]}
8... Nf6 {[%clk 0:02:56.9]} 9. Be2 {[%clk 0:02:52.9]} 9... Be6 {[%clk
0:02:56.3]} 10. Be3 {[%clk 0:02:51.4]} 10... O-O {[%clk 0:02:56.5]} 11. O-O
{[%clk 0:02:50.8]} 11... Nd7 {[%clk 0:02:37.2]} 12. Qd2 {[%clk 0:02:45.8]} 12...
Nc5 {[%clk 0:02:22.7]} 13. Nc2 {[%clk 0:02:39.9]} 13... f5 {[%clk 0:02:06.7]}
14. exf5 {[%clk 0:02:34.3]} 14... Bxf5 {[%clk 0:02:06.8]} 15. Rac1 {[%clk
0:02:27.6]} 15... Ne6 {[%clk 0:02:06.8]} 16. Nd5 {[%clk 0:02:24.8]} 16... Kh8
{[%clk 0:02:02.5]} 17. Bd3 {[%clk 0:02:14.6]} 17... Bg5 {[%clk 0:01:56.7]} 18.
Bxf5 {[%clk 0:02:11.1]} 18... Rxf5 {[%clk 0:01:56.4]} 19. Rcd1 {[%clk
0:02:06.5]} 19... Nf4 {[%clk 0:01:47.1]} 20. Bxf4 {[%clk 0:02:02.4]} 20... exf4
{[%clk 0:01:36.8]} 21. Qd3 {[%clk 0:01:55.9]} 21... Rf7 {[%clk 0:01:27.4]} 22.
Nd4 {[%clk 0:01:40.9]} 22... Ne5 {[%clk 0:01:19.9]} 23. Qh3 {[%clk 0:01:39.1]}
23... f3 {[%clk 0:01:19]} 24. Ne6 {[%clk 0:01:29.8]} 24... fxg2 {[%clk
0:00:57.4]} 25. Kxg2 {[%clk 0:01:28.8]} 25... Qg8 {[%clk 0:00:40]} 26. Nxg5
{[%clk 0:01:25.7]} 26... Rf4 {[%clk 0:00:29.8]} 27. Nxf4 {[%clk 0:01:23.8]}
27... h6 {[%clk 0:00:28.7]} 28. Rxd6 {[%clk 0:01:20.5]} 28... Qxc4 {[%clk
0:00:23.6]} 29. Rxh6+ {[%clk 0:01:09.5]} 29... gxh6 {[%clk 0:00:23.4]} 30. Qxh6+
{[%clk 0:01:09.1]} 30... Kg8 {[%clk 0:00:24.1]} 31. Qh7+ {[%clk 0:01:04.5]}
31... Kf8 {[%clk 0:00:24.6]} 32. Qh8+ {[%clk 0:00:55.9]} 32... Ke7 {[%clk
0:00:23.1]} 33. Qxe5+ {[%clk 0:00:54.8]} 33... Kd7 {[%clk 0:00:22.6]} 34. Rd1+
{[%clk 0:00:52.8]} 34... Kc6 {[%clk 0:00:22.1]} 35. Qd6+ {[%clk 0:00:44.2]}
35... Kb5 {[%clk 0:00:21.6]} 36. Rd5+ {[%clk 0:00:43.7]} 36... Ka4 {[%clk
0:00:20]} 37. b3+ {[%clk 0:00:43.3]} 37... Qxb3 {[%clk 0:00:18.8]} 38. axb3+
{[%clk 0:00:42.3]} 38... Kxb3 {[%clk 0:00:19.7]} 39. Rd3+ {[%clk 0:00:41.3]}
39... Kc2 {[%clk 0:00:20]} 40. Qc5+ {[%clk 0:00:39.5]} 40... Kb1 {[%clk
0:00:20.2]} 41. Qb4+ {[%clk 0:00:38.3]} 41... Kc2 {[%clk 0:00:20.1]} 42. Qb3+
{[%clk 0:00:37.2]} 42... Kc1 {[%clk 0:00:20.5]} 43. Rd1# {[%clk 0:00:36.7]} 1-0

[Event "Late-Titled-Tuesday-Blitz-February-20-2024"]
[Site "Chess.com"]
[Date "2024.02.20"]
[Round "5"]
[White "JoakimVonAnd"]
[Black "Bigfish1995"]
[Result "0-1"]
[WhiteElo "2697"]
[BlackElo "3165"]
[TimeControl "180+1"]
[EndTime "14:55:15 PST"]
[Termination "Bigfish1995 won by resignation"]

1. d4 {[%clk 0:03:00.9]} 1... Nf6 {[%clk 0:02:56.5]} 2. c4 {[%clk 0:03:00.2]}
2... c6 {[%clk 0:02:55.4]} 3. Nf3 {[%clk 0:02:57.2]} 3... d5 {[%clk 0:02:54.9]}
4. e3 {[%clk 0:02:56.5]} 4... e6 {[%clk 0:02:54]} 5. Bd3 {[%clk 0:02:52]} 5...
Nbd7 {[%clk 0:02:51.8]} 6. Nbd2 {[%clk 0:02:49.2]} 6... c5 {[%clk 0:02:46.3]} 7.
cxd5 {[%clk 0:02:47.5]} 7... Nxd5 {[%clk 0:02:46.2]} 8. O-O {[%clk 0:02:45.4]}
8... cxd4 {[%clk 0:02:46.2]} 9. Nxd4 {[%clk 0:02:46.2]} 9... Be7 {[%clk
0:02:45.8]} 10. b3 {[%clk 0:02:35.8]} 10... Ne5 {[%clk 0:02:42.7]} 11. Bb5+
{[%clk 0:02:32]} 11... Bd7 {[%clk 0:02:41.5]} 12. Bb2 {[%clk 0:02:32.5]} 12...
O-O {[%clk 0:02:25.2]} 13. Bxd7 {[%clk 0:02:17.6]} 13... Qxd7 {[%clk 0:02:23.9]}
14. Qe2 {[%clk 0:01:49.4]} 14... Rac8 {[%clk 0:02:14.2]} 15. Rfd1 {[%clk
0:01:49.5]} 15... a6 {[%clk 0:01:59.2]} 16. Nc4 {[%clk 0:01:30.6]} 16... Ng6
{[%clk 0:01:42.3]} 17. g3 {[%clk 0:01:15.7]} 17... b5 {[%clk 0:01:37.6]} 18. Nd2
{[%clk 0:01:06.3]} 18... Qb7 {[%clk 0:01:35.9]} 19. h4 {[%clk 0:00:59.8]} 19...
Nc3 {[%clk 0:01:23.9]} 20. Bxc3 {[%clk 0:00:59.6]} 20... Rxc3 {[%clk 0:01:24]}
21. a4 {[%clk 0:00:26.5]} 21... b4 {[%clk 0:01:20.5]} 22. Nc4 {[%clk 0:00:26.8]}
22... Bf6 {[%clk 0:01:15.2]} 23. h5 {[%clk 0:00:26.5]} 23... Ne5 {[%clk
0:01:09.5]} 24. Nxe5 {[%clk 0:00:26.9]} 24... Bxe5 {[%clk 0:01:10.4]} 25. h6
{[%clk 0:00:26.9]} 25... g6 {[%clk 0:01:01]} 26. Rac1 {[%clk 0:00:26.5]} 26...
Rfc8 {[%clk 0:00:50.5]} 27. Rxc3 {[%clk 0:00:26.1]} 27... bxc3 {[%clk
0:00:47.4]} 28. Qc2 {[%clk 0:00:19.8]} 28... Qb4 {[%clk 0:00:46.8]} 29. Nf3
{[%clk 0:00:18.9]} 29... Bf6 {[%clk 0:00:44.6]} 30. Rd3 {[%clk 0:00:18.9]} 30...
Qa3 {[%clk 0:00:38.1]} 31. e4 {[%clk 0:00:09.9]} 31... Qb2 {[%clk 0:00:37]} 32.
Ne1 {[%clk 0:00:10.3]} 32... Bg5 {[%clk 0:00:30.1]} 33. f4 {[%clk 0:00:10.2]}
33... Bxh6 {[%clk 0:00:30]} 34. e5 {[%clk 0:00:09]} 34... Bf8 {[%clk 0:00:29.7]}
35. Nf3 {[%clk 0:00:08.9]} 35... Qxc2 {[%clk 0:00:29]} 0-1

[Event "Late-Titled-Tuesday-Blitz-February-20-2024"]
[Site "Chess.com"]
[Date "2024.02.20"]
[Round "5"]
[White "northridgehawk"]
[Black "sakkikuska"]
[Result "1-0"]
[WhiteElo "2284"]
[BlackElo "2501"]
[TimeControl "180+1"]
[EndTime "14:55:17 PST"]
[Termination "northridgehawk won by resignation"]

1. e4 {[%clk 0:02:59]} 1... c5 {[%clk 0:02:59.9]} 2. d3 {[%clk 0:02:58.5]} 2...
Nc6 {[%clk 0:02:59]} 3. Nd2 {[%clk 0:02:51.6]} 3... g6 {[%clk 0:02:56]} 4. Ngf3
{[%clk 0:02:51.2]} 4... Bg7 {[%clk 0:02:55.9]} 5. g3 {[%clk 0:02:51.6]} 5... e6
{[%clk 0:02:54.7]} 6. Bg2 {[%clk 0:02:51.8]} 6... Nge7 {[%clk 0:02:55.1]} 7. O-O
{[%clk 0:02:51.5]} 7... d5 {[%clk 0:02:55.5]} 8. Qe2 {[%clk 0:02:51.5]} 8... O-O
{[%clk 0:02:52.3]} 9. h4 {[%clk 0:02:40.3]} 9... b6 {[%clk 0:02:36.1]} 10. c3
{[%clk 0:02:37.1]} 10... Bb7 {[%clk 0:02:35.6]} 11. Rd1 {[%clk 0:02:36.4]} 11...
Qc7 {[%clk 0:02:30]} 12. Nf1 {[%clk 0:02:29]} 12... dxe4 {[%clk 0:02:24.8]} 13.
dxe4 {[%clk 0:02:28.8]} 13... Rad8 {[%clk 0:02:25]} 14. Bf4 {[%clk 0:02:26]}
14... e5 {[%clk 0:02:21.2]} 15. Be3 {[%clk 0:02:24.7]} 15... Rxd1 {[%clk
0:02:16.1]} 16. Rxd1 {[%clk 0:02:24.3]} 16... Rd8 {[%clk 0:02:17]} 17. N1h2
{[%clk 0:02:23.9]} 17... h5 {[%clk 0:02:07.2]} 18. Ng5 {[%clk 0:02:22.6]} 18...
Rxd1+ {[%clk 0:02:05.2]} 19. Qxd1 {[%clk 0:02:22.5]} 19... Nd8 {[%clk
0:02:03.3]} 20. Qd3 {[%clk 0:02:04.3]} 20... c4 {[%clk 0:01:39.3]} 21. Qd2
{[%clk 0:01:56.3]} 21... f6 {[%clk 0:01:31.1]} 22. Nh3 {[%clk 0:01:51.4]} 22...
Ne6 {[%clk 0:01:29.5]} 23. f3 {[%clk 0:01:50.1]} 23... Kf7 {[%clk 0:01:17.8]}
24. Bf1 {[%clk 0:01:45]} 24... Nc8 {[%clk 0:01:03.7]} 25. Be2 {[%clk 0:01:39.9]}
25... Nd6 {[%clk 0:01:03.6]} 26. Nf1 {[%clk 0:01:39.5]} 26... Nc5 {[%clk
0:00:57]} 27. Nf2 {[%clk 0:01:38.9]} 27... a6 {[%clk 0:00:41.8]} 28. Kh2 {[%clk
0:01:37.4]} 28... b5 {[%clk 0:00:41.7]} 29. Bh6 {[%clk 0:01:28.5]} 29... Ne6
{[%clk 0:00:36.2]} 30. Bxg7 {[%clk 0:01:27.4]} 30... Kxg7 {[%clk 0:00:36.2]} 31.
Ne3 {[%clk 0:01:28.2]} 31... Qc5 {[%clk 0:00:30.1]} 32. b4 {[%clk 0:01:19.9]}
32... cxb3 {[%clk 0:00:26]} 33. Nd3 {[%clk 0:01:14.5]} 33... Qc7 {[%clk
0:00:18.7]} 34. axb3 {[%clk 0:01:13.7]} 34... a5 {[%clk 0:00:18.4]} 35. b4
{[%clk 0:01:03]} 35... axb4 {[%clk 0:00:15.9]} 36. Nxb4 {[%clk 0:01:02.6]} 36...
f5 {[%clk 0:00:11.8]} 37. Nbd5 {[%clk 0:00:57.3]} 37... Bxd5 {[%clk 0:00:11.3]}
38. Qxd5 {[%clk 0:00:57.3]} 38... Kf6 {[%clk 0:00:07.8]} 39. Qd2 {[%clk
0:00:50.8]} 39... f4 {[%clk 0:00:04.5]} 40. Nd5+ {[%clk 0:00:50.8]} 1-0